bitfinex-derivatives/quotes_BTCF0:USTF0_20220103
["timestamp","ask_amount","ask_price","bid_price","bid_amount"]
[1641209429653,1.056434,47330.0,47329.0,2.15842707]
[1641209430254,1.248434,47330.0,47329.0,2.15842707]
[1641209430460,1.248434,47330.0,47328.0,1.19848534]
[1641209430854,1.248434,47330.0,47329.0,1.19848534]
[1641209431456,1.428434,47330.0,47329.0,2.15842707]
[1641209431656,1.056434,47330.0,47329.0,2.15842707]
[1641209432257,1.248434,47330.0,47329.0,1.19848534]
[1641209433556,1.056434,47330.0,47329.0,1.19848534]
[1641209434256,1.248434,47330.0,47329.0,1.19848534]
[1641209434458,1.248434,47330.0,47328.0,1.19848534]
[1641209435661,1.056434,47330.0,47328.0,1.19848534]
[1641209436359,1.250434,47330.0,47328.0,1.19848534]
[1641209437361,0.009794,47329.0,47328.0,1.19848534]
[1641209437760,1.066239,47329.0,47328.0,1.19848534]
[1641209438262,1.257239,47329.0,47328.0,1.19848534]
[1641209438661,1.257239,47329.0,47327.0,1.19848534]
[1641209439561,1.066239,47329.0,47327.0,1.19848534]
[1641209439761,1.08737462,47329.0,47327.0,1.19848534]
[1641209439962,1.08737462,47329.0,47326.0,0.35934303]
[1641209440162,0.18,47327.0,47326.0,0.35934303]
[1641209440362,0.06892,47327.0,47326.0,0.35934303]
[1641209440562,0.825559,47327.0,47326.0,0.35934303]
[1641209440965,1.005559,47327.0,47326.0,0.35934303]
[1641209441163,1.006559,47327.0,47326.0,0.35934303]
[1641209441362,0.8466966,47327.0,47326.0,0.35934303]
[1641209441564,0.8466966,47327.0,47325.0,0.35934303]
[1641209442364,1.0376966,47327.0,47324.0,0.35934303]
[1641209442563,0.18,47326.0,47324.0,0.35934303]
[1641209442866,1.056524,47325.0,47324.0,0.35934303]
[1641209443268,1.056512,47326.0,47324.0,0.35934303]
[1641209443466,1.057535,47325.0,47324.0,0.35934303]
[1641209444366,1.249535,47325.0,47324.0,0.35934303]
[1641209445169,1.248535,47325.0,47324.0,0.35934303]
[1641209446171,1.056535,47325.0,47324.0,0.35934303]
[1641209446371,1.248535,47325.0,47324.0,0.35934303]
[1641209447181,0.192,47325.0,47324.0,0.35934303]
[1641209447583,0.14033567,47326.0,47324.0,0.35934303]
[1641209447783,0.14033567,47326.0,47323.0,0.61890506]
[1641209447982,0.14033567,47331.0,47323.0,0.61890506]
[1641209448286,0.83818429,47338.0,47329.0,0.18]
[1641209449285,0.60838623,47336.0,47329.0,0.18]
[1641209449485,0.60838623,47336.0,47334.0,0.14033567]
[1641209449685,0.009794,47336.0,47334.0,0.14033567]
[1641209450286,0.201794,47336.0,47334.0,0.14033567]
[1641209451687,0.009794,47336.0,47334.0,0.14033567]
[1641209452289,0.200794,47336.0,47334.0,0.14033567]
[1641209453890,0.009794,47336.0,47334.0,0.14033567]
[1641209454290,0.200794,47336.0,47334.0,0.14033567]
[1641209454691,0.18,47335.0,47334.0,0.14033567]
[1641209454891,0.26107,47335.0,47334.0,0.14033567]
[1641209455693,0.08107,47335.0,47334.0,0.14033567]
[1641209456294,0.27307,47335.0,47334.0,0.14033567]
[1641209457697,0.08107,47335.0,47334.0,0.14033567]
[1641209458302,0.27307,47335.0,47334.0,0.14033567]
[1641209459602,0.08107,47335.0,47334.0,0.14033567]
[1641209459802,0.009794,47336.0,47334.0,0.14033567]
[1641209459998,0.189794,47336.0,47334.0,0.14033567]
[1641209460200,0.009794,47336.0,47334.0,0.14033567]
[1641209460399,0.200794,47336.0,47334.0,0.14033567]
[1641209460902,0.200794,47336.0,47334.0,0.4996846]
[1641209461403,0.200794,47336.0,47334.0,0.14033567]
[1641209461600,0.84797829,47336.0,47335.0,1.55884704]
[1641209462400,1.03897829,47336.0,47335.0,1.55884704]
[1641209463601,0.84797829,47336.0,47335.0,1.55884704]
[1641209463801,0.009794,47336.0,47335.0,0.59890506]
[1641209464005,0.009794,47336.0,47334.0,0.73924073]
[1641209464204,0.093424,47336.0,47334.0,0.73924073]
[1641209464403,0.283424,47336.0,47334.0,0.73924073]
[1641209465305,0.463424,47336.0,47334.0,0.73924073]
[1641209465505,0.83771847,47335.0,47334.0,0.73924073]
[1641209465706,0.83771847,47335.0,47334.0,0.59890506]
[1641209466106,1.49407939,47336.0,47333.0,0.59890506]
[1641209466305,0.187,47335.0,47333.0,0.59890506]
[1641209466507,0.187,47335.0,47332.0,0.83846708]
[1641209466706,0.18,47333.0,47329.0,1.19848534]
[1641209466905,0.18,47330.0,47329.0,1.19848534]
[1641209467105,0.181,47330.0,47329.0,1.19848534]
[1641209467506,0.181,47330.0,47329.0,2.03805223]
[1641209467806,0.18,47330.0,47329.0,0.83956689]
[1641209468005,0.181,47330.0,47329.0,0.83956689]
[1641209468407,0.19,47330.0,47327.0,1.19848534]
[1641209468609,1.38784671,47330.0,47324.0,1.19848534]
[1641209469212,1.38784671,47330.0,47324.0,2.15856297]
[1641209469407,0.189,47330.0,47325.0,1.19848534]
[1641209469609,0.14033567,47331.0,47325.0,1.19848534]
[1641209470407,0.33033567,47331.0,47325.0,1.19848534]
[1641209470707,1.52918238,47331.0,47325.0,2.15856297]
[1641209471308,1.52918238,47331.0,47323.0,0.02]
[1641209471309,0.33033567,47331.0,47326.0,1.19848534]
[1641209471509,0.18,47330.0,47326.0,1.19848534]
[1641209471707,0.02113616,47328.0,47326.0,1.19848534]
[1641209472309,0.02113616,47328.0,47325.0,1.19848534]
[1641209472508,0.21113616,47328.0,47325.0,1.19848534]
[1641209473008,0.39113616,47328.0,47325.0,1.19848534]
[1641209473210,0.39113616,47328.0,47324.0,2.15856297]
[1641209473411,0.001,47325.0,47324.0,2.15856297]
[1641209473810,0.39113616,47328.0,47324.0,1.19848534]
[1641209474012,0.39113616,47328.0,47323.0,1.21848534]
[1641209474210,0.18,47326.0,47323.0,1.21848534]
[1641209474611,0.18,47326.0,47323.0,0.02]
[1641209475010,0.40113616,47328.0,47323.0,0.02]
[1641209475809,0.83940068,47325.0,47323.0,0.85964364]
[1641209476410,1.02940068,47325.0,47323.0,0.85964364]
[1641209477311,0.009794,47324.0,47323.0,0.85964364]
[1641209477511,0.63051167,47324.0,47323.0,0.85964364]
[1641209477810,0.77084734,47324.0,47323.0,0.85964364]
[1641209478011,0.17226805,47324.0,47323.0,0.85964364]
[1641209478210,1.01166873,47324.0,47323.0,0.02]
[1641209478410,1.19866873,47324.0,47323.0,0.02]
[1641209479011,1.19966873,47324.0,47323.0,0.02]
[1641209479214,1.19866873,47324.0,47323.0,0.02]
[1641209479812,1.01166873,47324.0,47323.0,0.02]
[1641209480215,1.19066873,47324.0,47323.0,0.02]
[1641209480415,0.54026805,47324.0,47323.0,0.85964364]
[1641209480613,0.54126805,47324.0,47323.0,0.85964364]
[1641209481014,0.54026805,47324.0,47323.0,0.85964364]
[1641209481414,0.54026805,47324.0,47323.0,0.02]
[1641209481815,0.17126805,47324.0,47323.0,0.02]
[1641209482415,0.36026805,47324.0,47323.0,0.02]
[1641209483214,0.54026805,47324.0,47323.0,0.02]
[1641209483415,0.54126805,47324.0,47323.0,0.02]
[1641209483815,1.19189273,47324.0,47323.0,0.6190971]
[1641209484215,1.19089273,47324.0,47323.0,0.6190971]
[1641209484419,1.37989273,47324.0,47323.0,0.6190971]
[1641209484617,0.54026805,47324.0,47323.0,0.02]
[1641209485620,0.35126805,47324.0,47323.0,0.02]
[1641209486420,0.54026805,47324.0,47323.0,0.02]
[1641209487719,0.36026805,47324.0,47323.0,0.02]
[1641209487933,0.17126805,47324.0,47323.0,0.02]
[1641209488324,0.35126805,47324.0,47323.0,0.02]
[1641209488623,0.35147405,47324.0,47323.0,0.02]
[1641209490129,0.36126805,47324.0,47323.0,0.02]
[1641209490330,0.35126805,47324.0,47323.0,0.02]
[1641209490533,0.54026805,47324.0,47323.0,0.02]
[1641209490729,0.36026805,47324.0,47323.0,0.02]
[1641209491930,0.35126805,47324.0,47323.0,0.02]
[1641209492429,0.54026805,47324.0,47323.0,0.02]
[1641209493731,0.35126805,47324.0,47323.0,0.02]
[1641209493932,0.35226805,47324.0,47323.0,0.02]
[1641209494533,0.54026805,47324.0,47323.0,0.02]
[1641209494736,0.53926805,47324.0,47323.0,0.02]
[1641209495134,0.35926805,47324.0,47323.0,0.02]
[1641209495741,0.35126805,47324.0,47323.0,0.02]
[1641209496540,0.53926805,47324.0,47323.0,0.02]
[1641209497141,0.54026805,47324.0,47323.0,0.02]
[1641209497343,0.53926805,47324.0,47323.0,0.02]
[1641209497741,0.35126805,47324.0,47323.0,0.02]
[1641209497942,0.35226805,47324.0,47323.0,0.02]
[1641209498342,0.35126805,47324.0,47323.0,0.02]
[1641209498545,0.89957059,47324.0,47323.0,0.02]
[1641209499042,0.89857059,47324.0,47323.0,0.02]
[1641209499542,0.53926805,47324.0,47323.0,0.02]
[1641209499743,0.35226805,47324.0,47323.0,0.02]
[1641209500245,1.45926805,47324.0,47313.0,1.8142]
[1641209500445,0.18,47319.0,47312.0,0.35873067]
[1641209500645,0.001,47314.0,47312.0,0.35873067]
[1641209500843,0.07112,47314.0,47312.0,0.35873067]
[1641209501545,0.07112,47314.0,47310.0,0.59788445]
[1641209501745,0.07112,47314.0,47308.0,0.35873067]
[1641209502546,0.26112,47314.0,47308.0,0.35873067]
[1641209502948,0.26112,47314.0,47306.0,0.35873067]
[1641209503548,0.009794,47313.0,47305.0,0.95661512]
[1641209503746,0.009794,47313.0,47305.0,0.35873067]
[1641209503747,0.14033567,47311.0,47305.0,0.35873067]
[1641209504548,0.33033567,47311.0,47304.0,0.95661512]
[1641209504747,0.33033567,47311.0,47304.0,0.35873067]
[1641209505248,0.33033567,47311.0,47303.0,0.95376804]
[1641209505449,0.35930254,47305.0,47303.0,2.38917669]
[1641209506051,0.35930254,47304.0,47303.0,0.95376804]
[1641209506250,0.41842254,47304.0,47303.0,0.95376804]
[1641209507656,0.05912,47304.0,47303.0,0.95376804]
[1641209508254,0.05912,47304.0,47302.0,0.14033567]
[1641209508555,0.25112,47304.0,47302.0,0.73946549]
[1641209509753,0.05912,47304.0,47302.0,0.73946549]
[1641209510257,0.05912,47304.0,47303.0,0.35947797]
[1641209510455,0.193,47304.0,47303.0,0.35947797]
[1641209510855,0.193,47304.0,47303.0,0.53947797]
[1641209511456,0.193,47304.0,47303.0,0.18]
[1641209511658,0.35851276,47314.0,47303.0,0.181]
[1641209511855,0.37965511,47314.0,47310.0,0.32033567]
[1641209512057,0.35851276,47314.0,47310.0,0.14033567]
[1641209512557,0.59884894,47316.0,47310.0,0.32933567]
[1641209512759,0.37965369,47317.0,47310.0,0.32933567]
[1641209513758,0.37965369,47317.0,47310.0,0.14033567]
[1641209513958,0.09164191,47316.0,47310.0,0.14033567]
[1641209514158,0.0211436,47311.0,47310.0,0.14033567]
[1641209514558,0.0211436,47311.0,47310.0,0.30433567]
[1641209515762,0.001,47311.0,47310.0,0.14033567]
[1641209515961,0.02114168,47315.0,47310.0,0.14033567]
[1641209516561,0.18914168,47315.0,47310.0,0.31233567]
[1641209517762,0.02114695,47311.0,47310.0,0.14033567]
[1641209518165,0.02214695,47311.0,47310.0,0.14033567]
[1641209518662,0.19214695,47311.0,47310.0,0.31433567]
[1641209518864,0.19114695,47311.0,47310.0,0.31433567]
[1641209519265,0.17,47311.0,47310.0,0.31433567]
[1641209519667,0.35851276,47315.0,47310.0,0.14033567]
[1641209520468,0.53351276,47315.0,47310.0,0.31833567]
[1641209521469,0.175,47315.0,47310.0,0.31833567]
[1641209521867,0.36830676,47316.0,47310.0,0.14033567]
[1641209522467,0.53330676,47316.0,47310.0,0.30933567]
[1641209523870,0.36830676,47316.0,47310.0,0.14033567]
[1641209524572,0.02114383,47311.0,47310.0,0.30033567]
[1641209524772,0.08759383,47311.0,47310.0,0.16]
[1641209524972,0.08859383,47311.0,47310.0,0.16]
[1641209525874,0.08759383,47311.0,47303.0,0.53943996]
[1641209526173,0.08759383,47311.0,47303.0,0.35943996]
[1641209526674,0.25859383,47311.0,47303.0,0.175]
[1641209526876,0.02114553,47307.0,47303.0,0.175]
[1641209527074,0.001,47304.0,47303.0,0.175]
[1641209527776,0.02114553,47307.0,47302.0,0.14033567]
[1641209527976,0.001,47304.0,47302.0,0.14033567]
[1641209528177,0.02114553,47307.0,47302.0,0.32033567]
[1641209528375,0.44610628,47311.0,47302.0,0.32033567]
[1641209528576,0.159,47304.0,47302.0,0.50333567]
[1641209528778,0.159,47304.0,47302.0,0.86277563]
[1641209530381,0.35851276,47312.0,47302.0,0.67977563]
[1641209530582,0.35851276,47312.0,47309.0,0.18]
[1641209530787,0.35851276,47312.0,47302.0,0.33433567]
[1641209530980,0.35851276,47314.0,47302.0,0.93346549]
[1641209531179,0.35851276,47314.0,47308.0,0.18]
[1641209531479,0.35851276,47314.0,47304.0,0.18]
[1641209531681,0.0211431,47312.0,47304.0,0.18]
[1641209532080,0.0211431,47312.0,47309.0,0.14033567]
[1641209532480,0.1901431,47312.0,47311.0,0.83878175]
[1641209532882,0.28017658,47312.0,47311.0,0.83878175]
[1641209533882,0.11117658,47312.0,47311.0,0.83878175]
[1641209534481,0.28217658,47312.0,47311.0,0.96178175]
[1641209534680,0.28317658,47312.0,47311.0,0.96178175]
[1641209535280,0.28217658,47312.0,47311.0,0.96178175]
[1641209535681,0.28217658,47312.0,47311.0,0.83878175]
[1641209535984,0.11217658,47312.0,47311.0,0.83878175]
[1641209536283,0.11117658,47312.0,47311.0,0.36015764]
[1641209536481,0.29317658,47312.0,47311.0,0.46015764]
[1641209537282,0.29217658,47312.0,47311.0,0.1]
[1641209537781,0.11217658,47312.0,47310.0,0.90935427]
[1641209538081,0.11117658,47312.0,47309.0,0.97911742]
[1641209538284,0.001,47311.0,47309.0,0.14033567]
[1641209538485,0.11117658,47312.0,47309.0,0.14033567]
[1641209538684,0.27717658,47312.0,47310.0,0.168]
[1641209538885,0.22815865,47319.0,47311.0,0.18]
[1641209539085,1.50305704,47321.0,47316.0,0.18]
[1641209539284,1.50305704,47322.0,47316.0,0.18]
[1641209539883,1.50305704,47322.0,47317.0,0.18]
[1641209540085,0.16147396,47324.0,47315.0,0.14033567]
[1641209540285,0.16147396,47324.0,47319.0,0.36009212]
[1641209540685,0.14033567,47324.0,47319.0,0.36009212]
[1641209540986,0.001,47320.0,47319.0,0.36009212]
[1641209541385,0.001,47320.0,47318.0,0.36009212]
[1641209541585,0.02113946,47321.0,47318.0,0.36009212]
[1641209542385,0.02113946,47321.0,47317.0,0.36009212]
[1641209542584,0.02113946,47321.0,47318.0,0.19]
[1641209543385,0.02113946,47321.0,47318.0,0.55009212]
[1641209543588,0.001,47319.0,47318.0,0.55009212]
[1641209543985,0.02113946,47321.0,47318.0,0.55009212]
[1641209544207,1.4402431,47319.0,47318.0,0.19]
[1641209544687,1.4402431,47319.0,47318.0,0.384]
[1641209545186,1.4402431,47320.0,47318.0,0.384]
[1641209545494,1.4402431,47320.0,47318.0,0.74409212]
[1641209545886,1.4402431,47320.0,47318.0,0.36009212]
[1641209546089,1.4402431,47320.0,47319.0,0.14033567]
[1641209546288,1.4402431,47320.0,47319.0,0.22794567]
[1641209546690,1.4402431,47320.0,47319.0,0.42294567]
[1641209547590,1.4402431,47323.0,47319.0,0.42294567]
[1641209547790,1.4402431,47323.0,47319.0,0.22794567]
[1641209547990,1.4402431,47323.0,47319.0,0.14033567]
[1641209548599,0.001,47320.0,47319.0,0.9317286]
[1641209548991,1.4402431,47323.0,47319.0,0.9317286]
[1641209549391,0.001,47320.0,47319.0,0.9317286]
[1641209549591,1.4402431,47322.0,47319.0,0.33233567]
[1641209549991,1.4402431,47322.0,47319.0,0.14033567]
[1641209550693,1.4402431,47324.0,47320.0,0.59939293]
[1641209551492,1.4402431,47323.0,47320.0,0.59939293]
[1641209552093,1.4402431,47324.0,47320.0,0.59939293]
[1641209552693,1.4402431,47324.0,47320.0,0.79639293]
[1641209554195,1.4402431,47324.0,47320.0,0.59939293]
[1641209554693,1.4402431,47324.0,47320.0,0.79539293]
[1641209555694,1.4402431,47324.0,47321.0,0.59939293]
[1641209556096,1.4402431,47325.0,47321.0,0.59939293]
[1641209556695,1.4402431,47325.0,47321.0,0.79439293]
[1641209557098,1.4402431,47324.0,47321.0,0.195]
[1641209558096,1.4402431,47324.0,47320.0,0.59939293]
[1641209558296,1.5015331,47324.0,47320.0,0.59939293]
[1641209558696,1.5015331,47324.0,47321.0,0.59939293]
[1641209559499,1.5015331,47324.0,47320.0,0.79339293]
[1641209559898,1.5015331,47324.0,47320.0,0.59939293]
[1641209560401,1.4402431,47323.0,47320.0,0.59939293]
[1641209560604,1.4402431,47323.0,47320.0,0.79139293]
[1641209561405,1.4402431,47323.0,47320.0,0.192]
[1641209562004,1.4402431,47323.0,47319.0,0.7397286]
[1641209562706,1.4402431,47323.0,47319.0,0.9317286]
[1641209563004,1.4402431,47322.0,47319.0,0.9317286]
[1641209563605,0.06129,47324.0,47320.0,1.55966564]
[1641209563606,1.4402431,47323.0,47320.0,1.55966564]
[1641209564405,1.4402431,47323.0,47320.0,0.59939293]
[1641209564605,1.4402431,47323.0,47321.0,0.35947011]
[1641209565406,1.4402431,47324.0,47322.0,0.35947011]
[1641209566610,1.4402431,47324.0,47322.0,0.55247011]
[1641209566817,1.4402431,47323.0,47322.0,0.193]
[1641209568021,1.4402431,47323.0,47321.0,0.35947011]
[1641209568621,1.4402431,47324.0,47322.0,0.35947011]
[1641209569821,1.4402431,47323.0,47321.0,0.55547011]
[1641209570021,1.4402431,47323.0,47321.0,0.35947011]
[1641209570723,1.4402431,47323.0,47321.0,0.55547011]
[1641209570926,0.06326,47323.0,47322.0,0.35947011]
[1641209571423,0.06326,47323.0,47321.0,0.55547011]
[1641209571424,1.5035031,47323.0,47321.0,0.55547011]
[1641209572029,1.5035031,47323.0,47321.0,0.35947011]
[1641209572623,1.5035031,47323.0,47321.0,0.55447011]
[1641209573626,0.001,47322.0,47321.0,0.55447011]
[1641209573825,1.5035031,47323.0,47321.0,0.55447011]
[1641209574025,1.5035031,47323.0,47320.0,0.35947011]
[1641209574026,1.4402431,47322.0,47320.0,0.35947011]
[1641209574626,1.4402431,47322.0,47320.0,0.54947011]
[1641209575027,0.06326,47323.0,47320.0,0.54947011]
[1641209575028,1.4402431,47321.0,47320.0,0.54947011]
[1641209575229,1.4402431,47321.0,47320.0,0.19]
[1641209575428,1.4412431,47321.0,47320.0,0.19]
[1641209576131,1.64238324,47321.0,47319.0,0.35947011]
[1641209576329,0.02114197,47320.0,47319.0,0.35947011]
[1641209576731,0.02214197,47320.0,47319.0,0.53647011]
[1641209577832,0.02214197,47320.0,47319.0,0.177]
[1641209578029,0.02214197,47320.0,47316.0,0.35947011]
[1641209578230,0.001,47317.0,47316.0,0.35947011]
[1641209578631,0.001,47317.0,47316.0,0.54947011]
[1641209578632,0.14133567,47317.0,47316.0,0.54947011]
[1641209579735,0.14033567,47317.0,47316.0,0.19]
[1641209579935,0.32033567,47317.0,47316.0,0.19]
[1641209580134,0.14033567,47317.0,47315.0,0.35947011]
[1641209580335,0.32033567,47317.0,47315.0,0.35947011]
[1641209580537,0.14033567,47317.0,47314.0,0.35947011]
[1641209580736,0.32033567,47317.0,47315.0,0.188]
[1641209581340,1.44060574,47316.0,47315.0,0.188]
[1641209582138,1.44060574,47316.0,47314.0,0.35947011]
[1641209582738,1.44060574,47316.0,47314.0,0.54847011]
[1641209583139,1.62060574,47316.0,47314.0,0.54847011]
[1641209583440,0.001,47315.0,47314.0,0.54847011]
[1641209584342,1.62060574,47316.0,47314.0,0.54847011]
[1641209584540,0.001,47315.0,47314.0,0.54847011]
[1641209585145,1.20000139,47315.0,47314.0,0.189]
[1641209586043,1.19900139,47315.0,47309.0,0.14033567]
[1641209586643,1.19900139,47315.0,47309.0,0.33333567]
[1641209587545,0.59949635,47311.0,47309.0,0.33333567]
[1641209588145,0.59949635,47311.0,47309.0,0.14033567]
[1641209588648,0.59949635,47311.0,47309.0,0.33433567]
[1641209592050,0.59949635,47311.0,47309.0,0.14033567]
[1641209592749,0.59949635,47312.0,47309.0,0.33533567]
[1641209594054,0.59949635,47312.0,47309.0,0.14033567]
[1641209594654,0.59949635,47312.0,47309.0,0.33533567]
[1641209596053,0.59949635,47312.0,47309.0,0.14033567]
[1641209596756,0.59949635,47312.0,47309.0,0.33533567]
[1641209597153,0.59949635,47312.0,47309.0,0.51533567]
[1641209597355,1.43879124,47312.0,47309.0,0.33533567]
[1641209597555,0.59949635,47311.0,47309.0,0.33533567]
[1641209598156,0.59949635,47311.0,47309.0,0.14033567]
[1641209598355,0.59949635,47310.0,47309.0,0.14033567]
[1641209598861,0.59949635,47310.0,47309.0,0.33533567]
[1641209600669,0.14033567,47317.0,47309.0,0.14033567]
[1641209600871,1.44060574,47314.0,47309.0,2.13548468]
[1641209601470,1.44060574,47314.0,47312.0,0.36013583]
[1641209602869,1.44060574,47314.0,47312.0,0.55513583]
[1641209603269,1.44060574,47314.0,47312.0,0.195]
[1641209603572,1.44060574,47316.0,47313.0,0.60022638]
[1641209604169,1.44060574,47316.0,47313.0,1.56059364]
[1641209604769,1.44060574,47316.0,47313.0,1.75559364]
[1641209605373,1.44060574,47315.0,47313.0,1.15536007]
[1641209605572,1.44060574,47315.0,47313.0,0.55513369]
[1641209605972,1.44060574,47315.0,47313.0,0.36013369]
[1641209606871,1.44060574,47315.0,47313.0,0.55613369]
[1641209607072,0.001,47314.0,47313.0,0.55613369]
[1641209607272,1.44060574,47315.0,47313.0,0.55613369]
[1641209607475,0.001,47314.0,47313.0,0.55613369]
[1641209608074,1.44060574,47314.0,47313.0,0.196]
[1641209608273,1.44060574,47314.0,47312.0,0.36013369]
[1641209608774,1.44060574,47314.0,47312.0,0.55413369]
[1641209609375,1.44060574,47315.0,47313.0,0.36013369]
[1641209609577,0.001,47314.0,47313.0,0.36013369]
[1641209610276,0.001,47314.0,47311.0,0.60022638]
[1641209610477,1.44060574,47315.0,47312.0,0.60022638]
[1641209611176,1.44060574,47315.0,47314.0,0.36005173]
[1641209612277,1.44060574,47316.0,47314.0,0.36005173]
[1641209612678,0.02114233,47315.0,47314.0,0.36005173]
[1641209612876,0.02114233,47315.0,47314.0,0.55005173]
[1641209613277,0.20114233,47315.0,47314.0,0.55005173]
[1641209613677,0.20114233,47315.0,47314.0,0.19]
[1641209614177,0.02114233,47315.0,47312.0,0.36005173]
[1641209614578,0.20114233,47315.0,47312.0,0.36005173]
[1641209614777,0.20114233,47315.0,47312.0,0.55005173]
[1641209615279,1.44054229,47314.0,47312.0,0.55005173]
[1641209616679,1.44054229,47314.0,47312.0,0.36005173]
[1641209616879,0.02114233,47315.0,47312.0,0.36005173]
[1641209616880,1.44054229,47313.0,47312.0,0.191]
[1641209617278,1.44154229,47313.0,47312.0,0.191]
[1641209618180,1.44054229,47313.0,47311.0,0.5003874]
[1641209618382,1.44154229,47313.0,47311.0,0.5003874]
[1641209618581,1.44054229,47313.0,47311.0,0.5003874]
[1641209618780,1.44054229,47313.0,47311.0,0.6923874]
[1641209619584,0.07367,47313.0,47312.0,0.36005173]
[1641209619781,0.07467,47313.0,47312.0,0.36005173]
[1641209619980,0.07367,47313.0,47312.0,0.36005173]
[1641209620384,0.07367,47313.0,47311.0,0.14033567]
[1641209620783,0.07367,47313.0,47312.0,0.19]
[1641209622082,0.07367,47313.0,47307.0,0.36005173]
[1641209622884,0.07367,47313.0,47310.0,0.14033567]
[1641209624186,0.001,47311.0,47310.0,0.14033567]
[1641209624787,0.001,47311.0,47310.0,0.33233567]
[1641209625888,1.46112898,47315.0,47310.0,0.33233567]
[1641209626087,0.001,47311.0,47310.0,0.14033567]
[1641209626489,1.64112898,47315.0,47310.0,0.14033567]
[1641209626688,0.001,47311.0,47310.0,0.14033567]
[1641209626888,0.001,47311.0,47310.0,0.33133567]
[1641209627689,1.64112898,47315.0,47310.0,0.33133567]
[1641209627891,0.001,47311.0,47310.0,0.33133567]
[1641209628089,0.001,47311.0,47310.0,0.14033567]
[1641209628493,1.46112898,47315.0,47310.0,0.14033567]
[1641209628690,0.001,47311.0,47310.0,0.14033567]
[1641209628889,0.001,47311.0,47310.0,0.33233567]
[1641209630291,0.001,47311.0,47310.0,0.14033567]
[1641209630891,1.64112898,47315.0,47310.0,0.33233567]
[1641209631293,0.001,47311.0,47310.0,0.33233567]
[1641209631895,1.46112898,47315.0,47310.0,0.33233567]
[1641209632094,1.46112898,47315.0,47310.0,0.14033567]
[1641209632795,1.43998665,47315.0,47314.0,0.18]
[1641209633596,1.43998665,47315.0,47311.0,0.18]
[1641209633797,1.43998665,47319.0,47311.0,0.54005173]
[1641209634596,1.43998665,47319.0,47311.0,0.36005173]
[1641209634797,1.43998665,47319.0,47311.0,0.55405173]
[1641209635097,1.43998665,47319.0,47315.0,0.14033567]
[1641209635501,1.43998665,47320.0,47315.0,0.14033567]
[1641209636901,1.43998665,47320.0,47315.0,0.33433567]
[1641209637602,1.43998665,47321.0,47315.0,0.33433567]
[1641209638203,1.43998665,47321.0,47315.0,0.14033567]
[1641209638805,1.43998665,47321.0,47315.0,0.33433567]
[1641209639004,1.43998665,47320.0,47315.0,0.33433567]
[1641209640205,1.43998665,47320.0,47315.0,0.14033567]
[1641209640406,1.43998665,47321.0,47315.0,0.14033567]
[1641209640908,1.43998665,47321.0,47315.0,0.33433567]
[1641209641107,1.43998665,47320.0,47315.0,0.33433567]
[1641209642016,1.43998665,47317.0,47315.0,0.6943874]
[1641209642214,1.43998665,47317.0,47315.0,0.5003874]
[1641209642714,1.43998665,47318.0,47315.0,0.5003874]
[1641209642914,1.43998665,47318.0,47315.0,0.6953874]
[1641209644919,1.43998665,47317.0,47315.0,0.8903874]
[1641209646218,1.43998665,47317.0,47315.0,0.5003874]
[1641209646820,1.43998665,47319.0,47316.0,0.36005173]
[1641209648824,1.43998665,47319.0,47316.0,0.55405173]
[1641209650038,1.43998665,47319.0,47317.0,0.36005173]
[1641209650842,1.43998665,47319.0,47317.0,0.55405173]
[1641209652241,1.43998665,47319.0,47317.0,0.36005173]
[1641209652942,1.43998665,47319.0,47317.0,0.55405173]
[1641209654048,1.19890767,47319.0,47317.0,0.194]
[1641209654249,1.19890767,47319.0,47315.0,0.14033567]
[1641209654448,1.27141767,47319.0,47315.0,0.14033567]
[1641209654848,1.27141767,47319.0,47315.0,0.33433567]
[1641209655650,0.83923869,47316.0,47315.0,0.33433567]
[1641209656251,0.83923869,47316.0,47315.0,0.14033567]
[1641209656849,0.83923869,47316.0,47315.0,0.33533567]
[1641209657753,1.27141767,47319.0,47315.0,0.33533567]
[1641209657952,1.19890767,47318.0,47315.0,0.33533567]
[1641209658354,1.19890767,47318.0,47315.0,0.14033567]
[1641209658755,1.19890767,47317.0,47315.0,0.14033567]
[1641209658957,1.19890767,47317.0,47315.0,0.33433567]
[1641209660357,1.19890767,47317.0,47315.0,0.14033567]
[1641209660959,1.19890767,47317.0,47315.0,0.33533567]
[1641209662162,1.19890767,47317.0,47315.0,0.14033567]
[1641209662364,1.46112475,47324.0,47315.0,0.14033567]
[1641209662365,0.83925356,47316.0,47315.0,0.14033567]
[1641209662964,1.19890767,47318.0,47315.0,0.33533567]
[1641209663170,1.19890767,47317.0,47315.0,0.33533567]
[1641209663764,0.08174,47319.0,47315.0,0.33533567]
[1641209663765,1.19890767,47318.0,47315.0,0.33533567]
[1641209664166,1.19890767,47318.0,47315.0,0.14033567]
[1641209664464,0.83926012,47316.0,47315.0,0.14033567]
[1641209665065,0.83926012,47316.0,47315.0,0.33533567]
[1641209666265,0.83926012,47316.0,47315.0,0.14033567]
[1641209666465,0.2011381,47324.0,47315.0,0.14033567]
[1641209666670,1.43998665,47318.0,47315.0,0.14033567]
[1641209666867,1.69018665,47318.0,47315.0,0.14033567]
[1641209667067,1.69018665,47318.0,47315.0,0.33333567]
[1641209667267,1.43998665,47317.0,47315.0,0.69198141]
[1641209667667,1.43998665,47317.0,47315.0,0.55164574]
[1641209668270,0.2502,47318.0,47313.0,0.95887212]
[1641209668471,0.2502,47318.0,47313.0,0.35864574]
[1641209668969,0.2502,47318.0,47313.0,0.55164574]
[1641209669171,1.44034305,47315.0,47313.0,0.55164574]
[1641209670369,1.44034305,47315.0,47313.0,0.35864574]
[1641209670771,0.001,47314.0,47313.0,0.35864574]
[1641209670971,0.001,47314.0,47313.0,0.55164574]
[1641209671573,1.44034305,47315.0,47313.0,0.55164574]
[1641209671971,1.44034305,47315.0,47313.0,0.193]
[1641209672173,1.44034305,47315.0,47312.0,0.35864574]
[1641209672672,1.44034305,47314.0,47312.0,0.35864574]
[1641209672973,1.44034305,47314.0,47312.0,0.55264574]
[1641209673374,1.44034305,47315.0,47312.0,0.55264574]
[1641209673574,0.001,47313.0,47312.0,0.55264574]
[1641209674275,0.001,47313.0,47312.0,0.35864574]
[1641209674874,1.44034305,47314.0,47312.0,0.35864574]
[1641209675075,0.001,47313.0,47312.0,0.55364574]
[1641209675274,0.001,47313.0,47312.0,0.195]
[1641209676292,0.001,47313.0,47311.0,0.60022638]
[1641209676493,0.0702,47318.0,47310.0,0.14033567]